fUST/lending_fUST_20240216
["ID","MTS","AMOUNT","RATE_DAILY","PERIOD"]
[314129383,1708012988149,158.304405,0.00030959,120]
[314129395,1708013380370,-294.87723359,0.00022,2]
[314129396,1708013380403,-482.52659048,0.00026191,2]
[314129397,1708013380432,-186.49643498,0.00026191,2]
[314129398,1708013380459,-665.034789,0.00026362,2]
[314129399,1708013380485,-166.666666,0.00026364,2]
[314129400,1708013380513,-3392.5992057,0.00026677,2]
[314129401,1708013380539,-250.0,0.00027031,2]
[314129429,1708013431903,-2059.19044713,0.00027241,2]
[314129431,1708013431915,-518.37387377,0.00027241,2]
[314129433,1708013431925,-579.9354385,0.000275,2]
[314129435,1708013431934,-168.684507,0.00027851,2]
[314129437,1708013431943,-673.46799232,0.0002904,2]
[314129439,1708013431953,-200.0,0.00029267,15]
[314129441,1708013431962,-1313.00669861,0.000299,2]
[314129443,1708013431971,-166.666666,0.00029958,2]
[314129445,1708013431980,-6140.7,0.0002999,3]
[314129447,1708013431989,-5117.25,0.0002999,3]
[314129449,1708013431999,-167.50567642,0.0003,2]
[314129450,1708013432009,-376.39965109,0.0003,10]
[314129453,1708013432019,-7418.89452832,0.0003,2]
[314129456,1708013432029,-2202.15834929,0.0003,2]
[314129459,1708013432038,-311.15505257,0.0003,2]
[314129462,1708013432047,-5987.95559718,0.0003,2]
[314129465,1708013432057,-645.36782222,0.0003,14]
[314129468,1708013432067,-2585.50820277,0.0003,10]
[314129471,1708013432076,-702.28944936,0.0003,2]
[314129474,1708013432086,-2695.58269908,0.0003,30]
[314129476,1708013432095,-42461.91434434,0.0003,2]
[314129479,1708013432104,-7009.3095988,0.0003,10]
[314129482,1708013432113,-500.51032279,0.0003,2]
[314129484,1708013432122,-1211.12582074,0.0003,30]
[314129487,1708013432131,-198.48020225,0.0003013,2]
[314129490,1708013432144,-400.37155416,0.00030137,2]
[314129492,1708013432153,-622.67339962,0.00030492,2]
[314129493,1708013432163,-755.79016305,0.00030619,2]
[314129495,1708013432173,-2545.86320615,0.00030776,2]
[314129497,1708013432182,-154.98610421,0.00030804,2]
[314129499,1708013432192,-158.304405,0.00030959,2]
[314129500,1708013432201,-158.304405,0.00030959,8]
[314129501,1708013432210,-158.304405,0.00030959,15]
[314129502,1708013432220,-158.304405,0.00030959,22]
[314129503,1708013432229,-158.304405,0.00030959,29]
[314129504,1708013432238,-158.304405,0.00030959,36]
[314129505,1708013432247,-158.304405,0.00030959,43]
[314129506,1708013432256,-158.304405,0.00030959,50]
[314129507,1708013432266,-158.304405,0.00030959,57]
[314129508,1708013432276,-158.304405,0.00030959,64]
[314129509,1708013432285,-158.304405,0.00030959,71]
[314129510,1708013432294,-158.304405,0.00030959,78]
[314129511,1708013432303,-158.304405,0.00030959,85]
[314129512,1708013432312,-158.304405,0.00030959,92]
[314129513,1708013432321,-158.304405,0.00030959,99]
[314129514,1708013432330,-158.304405,0.00030959,106]
[314129515,1708013432339,-158.304405,0.00030959,113]
[314129516,1708013432348,-5088.64401109,0.00031,4]
[314129517,1708013432357,-8668.26327979,0.00031,2]
[314129561,1708013437850,-24900.0,0.00031,2]
[314129563,1708013437860,-631.6628396,0.00031,2]
[314129565,1708013437870,-155.0,0.00031,2]
[314129567,1708013437880,-3960.57680306,0.00031997,3]
[314129568,1708013437890,-250.0,0.00031999,2]
[314129570,1708013437901,-500.0,0.00031999,7]
[314129572,1708013437910,-500.0,0.00031999,7]
[314129573,1708013437918,-229.74785311,0.00031999,7]
[314129575,1708013437927,-500.0,0.00031999,7]
[314129577,1708013437936,-500.0,0.00031999,7]
[314129578,1708013437946,-500.0,0.00031999,7]
[314129579,1708013437956,-500.0,0.00031999,7]
[314129580,1708013437965,-500.0,0.00031999,7]
[314129581,1708013437975,-384.20210103,0.00031999,7]
[314129582,1708013437984,-500.0,0.00031999,7]
[314129583,1708013437993,-500.0,0.00031999,7]
[314129584,1708013438003,-500.0,0.00031999,7]
[314129585,1708013438012,-500.0,0.00031999,7]
[314129586,1708013438021,-500.0,0.00031999,7]
[314129587,1708013438109,-500.0,0.00031999,7]
[314129588,1708013438119,-500.0,0.00031999,7]
[314129589,1708013438129,-500.0,0.00031999,7]
[314129590,1708013438139,-500.0,0.00031999,7]
[314129591,1708013438151,-500.0,0.00031999,7]
[314129592,1708013438161,-393.60167544,0.00031999,7]
[314129593,1708013438171,-500.0,0.00031999,7]
[314129594,1708013438181,-204.69576329,0.00031999,7]
[314129595,1708013438190,-500.0,0.00031999,7]
[314129596,1708013438199,-500.0,0.00031999,7]
[314129597,1708013438209,-500.0,0.00031999,7]
[314129598,1708013438220,-629.75224407,0.00031999,7]
[314129599,1708013438229,-500.0,0.00031999,7]
[314129600,1708013438239,-500.0,0.00031999,7]
[314129601,1708013438249,-500.0,0.00031999,7]
[314129602,1708013438258,-528.43864079,0.00031999,7]
[314129603,1708013438268,-500.0,0.00031999,7]
[314129604,1708013438278,-500.0,0.00031999,7]
[314129605,1708013438287,-422.32978292,0.00031999,7]
[314129606,1708013438297,-500.0,0.00031999,7]
[314129607,1708013438307,-500.0,0.00031999,7]
[314129608,1708013438318,-299.31139545,0.00031999,7]
[314129609,1708013438327,-500.0,0.00031999,7]
[314129610,1708013438337,-500.0,0.00031999,7]
[314129611,1708013438346,-500.0,0.00031999,7]
[314129612,1708013438355,-500.0,0.00031999,7]
[314129613,1708013438365,-500.0,0.00031999,7]
[314129614,1708013438374,-38302.46696755,0.00032,10]
[314129615,1708013438389,-29479.96317123,0.00032,10]
[314129616,1708013438404,-142194.91376135,0.00032,15]
[314129617,1708013438413,-620.13366998,0.00032017,2]
[314129618,1708013438424,-280.0,0.00032194,15]
[314129619,1708013438433,-155.0,0.0003237,2]
[314129620,1708013438442,-156.5002996,0.00032466,2]
[314129621,1708013438450,-500.0,0.00032684,2]
[314129622,1708013438459,-37706.88791695,0.00032776,3]
[314129623,1708013438468,-755.79016305,0.00032776,2]
[314129624,1708013438477,-158.74,0.00032847,35]
[314129625,1708013438487,-5427.0,0.0003285,35]
[314129626,1708013438497,-1922.0,0.0003285,35]
[314129627,1708013438506,-4212.0,0.0003285,35]
[314129628,1708013438515,-150.5,0.00032857,35]
[314129629,1708013438524,-150.76,0.0003286,35]
[314129630,1708013438534,-5427.0,0.0003286,35]
[314129631,1708013438544,-1922.0,0.0003286,35]
[314129632,1708013438553,-4212.0,0.0003286,35]
[314129633,1708013438563,-150.5,0.0003287,35]
[314129634,1708013438573,-150.5,0.0003287,35]
[314129635,1708013438583,-5427.0,0.0003287,35]
[314129636,1708013438592,-1922.0,0.0003287,35]
[314129637,1708013438605,-4212.0,0.0003287,35]
[314129638,1708013438615,-1003.64702236,0.00032875,2]
[314129639,1708013438625,-520.38106487,0.00032875,7]
[314129640,1708013438635,-197.33585836,0.00032875,7]
[314129641,1708013438647,-500.0,0.00032875,7]
[314129642,1708013438656,-413.88806425,0.00032875,7]
[314129643,1708013438666,-500.0,0.00032875,7]
[314129644,1708013438675,-500.0,0.00032875,7]
[314129645,1708013438684,-500.0,0.00032875,7]
[314129646,1708013438694,-500.0,0.00032875,7]
[314129647,1708013438704,-500.0,0.00032875,7]
[314129648,1708013438713,-500.0,0.00032875,7]
[314129649,1708013438722,-279.0961051,0.00032875,7]
[314129650,1708013438733,-500.0,0.00032875,7]
[314129651,1708013438742,-500.0,0.00032875,7]
[314129652,1708013438751,-370.78363729,0.00032875,7]
[314129653,1708013438761,-500.0,0.00032875,7]
[314129654,1708013438770,-500.0,0.00032875,7]
[314129655,1708013438779,-500.0,0.00032875,7]
[314129656,1708013438789,-500.0,0.00032875,7]
[314129657,1708013438799,-500.0,0.00032875,7]
[314129658,1708013438808,-500.0,0.00032875,7]
[314129659,1708013438818,-500.0,0.00032875,7]
[314129660,1708013438828,-432.22013115,0.00032875,7]
[314129661,1708013438838,-500.0,0.00032875,7]
[314129662,1708013438847,-500.0,0.00032875,7]
[314129663,1708013438857,-500.0,0.00032875,7]
[314129664,1708013438866,-400.0,0.00032875,7]
[314129665,1708013438875,-160.0,0.00032875,10]
[314129666,1708013438885,-237.99635956,0.00032875,10]
[314129667,1708013438895,-166.35,0.00032875,2]
[314129668,1708013438904,-151.0,0.00032875,2]
[314129669,1708013438914,-151.0,0.00032875,2]
[314129670,1708013438924,-274.20285632,0.00032876,3]
[314129671,1708013438934,-253.39231964,0.00032876,7]
[314129672,1708013438943,-500.0,0.00032876,7]
[314129673,1708013438952,-580.37169468,0.00032876,7]
[314129674,1708013438961,-500.0,0.00032876,7]
[314129675,1708013438970,-500.0,0.00032876,7]
[314129676,1708013438979,-500.0,0.00032876,7]
[314129677,1708013438988,-500.0,0.00032876,7]
[314129678,1708013438998,-500.0,0.00032876,7]
[314129679,1708013439007,-500.0,0.00032876,7]
[314129680,1708013439017,-500.0,0.00032876,7]
[314129681,1708013439027,-500.0,0.00032876,7]
[314129682,1708013439036,-500.0,0.00032876,7]
[314129683,1708013439048,-500.0,0.00032876,7]
[314129684,1708013439058,-500.0,0.00032876,7]
[314129685,1708013439069,-500.0,0.00032876,7]
[314129686,1708013439078,-500.0,0.00032876,7]
[314129687,1708013439088,-500.0,0.00032876,7]
[314129688,1708013439097,-500.0,0.00032876,7]
[314129689,1708013439106,-500.0,0.00032876,7]
[314129690,1708013439116,-500.0,0.00032876,7]
[314129691,1708013439127,-500.0,0.00032876,7]
[314129692,1708013439138,-500.0,0.00032876,7]
[314129693,1708013439149,-500.0,0.00032876,7]
[314129694,1708013439158,-500.0,0.00032876,7]
[314129695,1708013439168,-500.0,0.00032876,7]
[314129696,1708013439177,-500.0,0.00032876,7]
[314129697,1708013439187,-235.94005379,0.00032876,7]
[314129698,1708013439197,-500.0,0.00032876,7]
[314129699,1708013439206,-460.45033616,0.00032876,7]
[314129700,1708013439217,-500.0,0.00032876,7]
[314129701,1708013439227,-500.0,0.00032876,7]
[314129702,1708013439236,-500.0,0.00032876,7]
[314129703,1708013439246,-500.0,0.00032876,7]
[314129704,1708013439255,-500.0,0.00032876,7]
[314129705,1708013439264,-500.0,0.00032876,7]
[314129706,1708013439274,-500.0,0.00032876,7]
[314129707,1708013439284,-500.0,0.00032876,7]
[314129708,1708013439294,-500.0,0.00032876,7]
[314129709,1708013439303,-500.0,0.00032876,7]
[314129710,1708013439313,-365.16182033,0.00032876,7]
[314129711,1708013439323,-214.22248471,0.00032876,7]
[314129712,1708013439334,-341.84697268,0.00032876,7]
[314129713,1708013439344,-465.73881659,0.00032876,7]
[314129714,1708013439353,-500.0,0.00032876,7]
[314129715,1708013439362,-500.0,0.00032876,7]
[314129716,1708013439371,-500.0,0.00032876,7]
[314129717,1708013439380,-500.0,0.00032876,7]
[314129718,1708013439390,-500.0,0.00032876,7]
[314129719,1708013439400,-500.0,0.00032876,7]
[314129720,1708013439464,-500.0,0.00032876,7]
[314129721,1708013439482,-500.0,0.00032876,7]
[314129722,1708013439491,-500.0,0.00032876,7]
[314129723,1708013439501,-500.0,0.00032876,7]
[314129724,1708013439510,-500.0,0.00032876,7]
[314129725,1708013439519,-500.0,0.00032876,7]
[314129726,1708013439529,-500.0,0.00032876,7]
[314129727,1708013439538,-500.0,0.00032876,7]
[314129728,1708013439547,-500.0,0.00032876,7]
[314129729,1708013439557,-500.0,0.00032876,7]
[314129730,1708013439567,-500.0,0.00032876,7]
[314129731,1708013439576,-500.0,0.00032876,7]
[314129732,1708013439586,-500.0,0.00032876,7]
[314129733,1708013439595,-500.0,0.00032876,7]
[314129734,1708013439606,-500.0,0.00032876,7]
[314129735,1708013439616,-500.0,0.00032876,7]
[314129736,1708013439628,-500.0,0.00032876,7]
[314129737,1708013439637,-500.0,0.00032876,7]
[314129738,1708013439647,-241.32961931,0.00032876,7]
[314129739,1708013439657,-500.0,0.00032876,7]
[314129740,1708013439666,-500.0,0.00032876,7]
[314129741,1708013439675,-500.0,0.00032876,7]
[314129742,1708013439685,-500.0,0.00032876,7]
[314129743,1708013439694,-500.0,0.00032876,7]
[314129744,1708013439705,-500.0,0.00032876,7]
[314129745,1708013439714,-500.0,0.00032876,7]
[314129746,1708013439724,-500.0,0.00032876,7]
[314129747,1708013439733,-500.0,0.00032876,7]
[314129748,1708013439743,-500.0,0.00032876,7]
[314129749,1708013439752,-500.0,0.00032876,7]
[314129750,1708013439761,-500.0,0.00032876,7]
[314129751,1708013439771,-500.0,0.00032876,7]
[314129752,1708013439780,-500.0,0.00032876,7]
[314129753,1708013439789,-500.0,0.00032876,7]
[314129754,1708013439799,-500.0,0.00032876,7]
[314129755,1708013439808,-317.89091189,0.00032876,7]
[314129756,1708013439818,-500.0,0.00032876,7]
[314129757,1708013439827,-366.59015505,0.00032876,7]
[314129758,1708013439836,-169.82651564,0.00032876,7]
[314129759,1708013439846,-181.08358268,0.00032876,7]
[314129760,1708013439855,-213.5921981,0.00032876,7]
[314129761,1708013439864,-432.62240838,0.00032876,7]
[314129762,1708013439874,-578.29952925,0.00032876,7]
[314129763,1708013439884,-500.0,0.00032876,7]
[314129764,1708013439895,-392.64141406,0.00032876,7]
[314129765,1708013439904,-500.0,0.00032876,7]
[314129766,1708013439914,-500.0,0.00032876,7]
[314129767,1708013439923,-600.0,0.00032876,7]
[314129768,1708013439933,-500.0,0.00032876,7]
[314129769,1708013439942,-618.01,0.00032876,7]
[314129770,1708013439951,-618.01,0.00032876,7]
[314129771,1708013439961,-618.01,0.00032876,7]
[314129772,1708013439970,-618.01,0.00032876,7]
[314129773,1708013439979,-618.01,0.00032876,7]
[314129775,1708013439988,-618.01,0.00032876,7]
[314129777,1708013439997,-618.01,0.00032876,7]
[314129778,1708013440007,-618.01,0.00032876,7]
[314129779,1708013440016,-618.01,0.00032876,7]
[314129780,1708013440025,-618.01,0.00032876,7]
[314129781,1708013440034,-618.01,0.00032876,7]
[314129782,1708013440043,-618.01,0.00032876,7]
[314129783,1708013440052,-618.01,0.00032876,7]
[314129784,1708013440065,-618.01,0.00032876,7]
[314129785,1708013440082,-618.01,0.00032876,7]
[314129786,1708013440099,-618.01,0.00032876,7]
[314129787,1708013440110,-618.01,0.00032876,7]
[314129788,1708013440126,-618.01,0.00032876,7]
[314129789,1708013440142,-618.01,0.00032876,7]
[314129790,1708013440159,-618.01,0.00032876,7]
[314129791,1708013440174,-618.01,0.00032876,7]
[314129792,1708013440187,-618.01,0.00032876,7]
[314129793,1708013440200,-502.92013251,0.00032876,7]
[314129794,1708013440214,-618.01,0.00032876,7]
[314129795,1708013440228,-618.0530353,0.00032876,7]
[314129796,1708013440242,-500.0,0.00032876,7]
[314129797,1708013440253,-500.0,0.00032876,7]
[314129798,1708013440269,-500.0,0.00032876,7]
[314129799,1708013440284,-500.0,0.00032876,7]
[314129800,1708013440297,-500.0,0.00032876,7]
[314129801,1708013440311,-302.14032212,0.00032876,7]
[314129802,1708013440326,-516.26871262,0.00032876,7]
[314129803,1708013440342,-500.0,0.00032876,7]
[314129804,1708013440356,-554.07303476,0.00032876,7]
[314129805,1708013440370,-516.39323085,0.00032876,7]
[314129806,1708013440380,-500.0,0.00032876,7]
[314129807,1708013440391,-500.0,0.00032876,7]
[314129808,1708013440408,-500.0,0.00032876,7]
[314129809,1708013440420,-500.0,0.00032876,7]
[314129810,1708013440434,-500.0,0.00032876,7]
[314129811,1708013440445,-565.12591649,0.00032876,7]
[314129812,1708013440457,-500.0,0.00032876,7]
[314129813,1708013440469,-500.0,0.00032876,7]
[314129814,1708013440481,-509.63478831,0.00032876,7]
[314129815,1708013440492,-500.0,0.00032876,7]
[314129816,1708013440504,-500.0,0.00032876,7]
[314129817,1708013440516,-466.3663281,0.00032876,7]
[314129818,1708013440528,-500.0,0.00032876,7]
[314129819,1708013440539,-500.0,0.00032876,7]
[314129820,1708013440552,-500.0,0.00032876,7]
[314129821,1708013440564,-500.0,0.00032876,7]
[314129822,1708013440576,-500.0,0.00032876,7]
[314129823,1708013440588,-500.0,0.00032876,7]
[314129824,1708013440600,-162.27036822,0.00032876,7]
[314129825,1708013440613,-500.0,0.00032876,7]
[314129826,1708013440627,-500.0,0.00032876,7]
[314129827,1708013440639,-500.0,0.00032876,7]
[314129828,1708013440652,-582.49891796,0.00032876,7]
[314129829,1708013440665,-505.49748624,0.00032876,7]
[314129830,1708013440676,-377.83158779,0.00032876,7]
[314129831,1708013440688,-500.0,0.00032876,7]
[314129832,1708013440701,-500.0,0.00032876,7]
[314129833,1708013440714,-500.0,0.00032876,7]
[314129834,1708013440726,-500.0,0.00032876,7]
[314129835,1708013440739,-500.0,0.00032876,7]
[314129836,1708013440752,-292.49912931,0.00032876,7]
[314129837,1708013440764,-500.0,0.00032876,7]
[314129838,1708013440776,-516.51970827,0.00032876,7]
[314129839,1708013440799,-500.0,0.00032876,7]
[314129840,1708013440811,-500.0,0.00032876,7]
[314129841,1708013440824,-500.0,0.00032876,7]
[314129842,1708013440835,-500.0,0.00032876,7]
[314129843,1708013440845,-500.0,0.00032876,7]
[314129844,1708013440855,-181.51926605,0.00032876,7]
[314129845,1708013440965,-533.50988695,0.00032876,7]
[314129846,1708013440981,-500.0,0.00032876,7]
[314129847,1708013440991,-503.17223067,0.00032876,7]
[314129849,1708013441000,-403.79557639,0.00032876,7]
[314129850,1708013441009,-515.08897743,0.00032876,7]
[314129851,1708013441018,-500.0,0.00032876,7]
[314129852,1708013441027,-500.0,0.00032876,7]
[314129853,1708013441037,-500.0,0.00032876,7]
[314129854,1708013441048,-522.11329078,0.00032876,7]
[314129855,1708013441057,-502.41251574,0.00032876,7]
[314129856,1708013441066,-502.83232486,0.00032876,7]
[314129857,1708013441075,-503.20204968,0.00032876,7]
[314129858,1708013441085,-500.0,0.00032876,7]
[314129859,1708013441094,-500.0,0.00032876,7]
[314129860,1708013441103,-500.0,0.00032876,7]
[314129861,1708013441112,-577.04757293,0.00032876,7]
[314129862,1708013441121,-502.59986416,0.00032876,7]
[314129863,1708013441130,-412.87599848,0.00032876,7]
[314129864,1708013441139,-500.0,0.00032876,7]
[314129865,1708013441150,-500.0,0.00032876,7]
[314129866,1708013441159,-500.0,0.00032876,7]
[314129867,1708013441168,-500.0,0.00032876,7]
[314129868,1708013441177,-500.0,0.00032876,7]
[314129869,1708013441186,-499.85559271,0.00032876,7]
[314129870,1708013441193,-500.0,0.00032876,7]
[314129871,1708013441202,-500.0,0.00032876,7]
[314129872,1708013441211,-500.0,0.00032876,7]
[314129873,1708013441221,-500.0,0.00032876,7]
[314129874,1708013441230,-500.0,0.00032876,7]
[314129875,1708013441239,-500.0,0.00032876,7]
[314129876,1708013441248,-209.48608423,0.00032876,7]
[314129877,1708013441257,-567.11,0.00032876,7]
[314129878,1708013441266,-567.11,0.00032876,7]
[314129879,1708013441276,-567.11,0.00032876,7]
[314129880,1708013441285,-567.11,0.00032876,7]
[314129881,1708013441294,-567.11,0.00032876,7]
[314129882,1708013441303,-567.11,0.00032876,7]
[314129883,1708013441313,-567.11,0.00032876,7]
[314129884,1708013441322,-567.11,0.00032876,7]
[314129885,1708013441332,-430.35602578,0.00032876,2]
[314129886,1708013441341,-567.11,0.00032876,7]
[314129887,1708013441351,-567.11,0.00032876,7]
[314129888,1708013441360,-567.11,0.00032876,7]
[314129889,1708013441369,-567.11,0.00032876,7]
[314129890,1708013441379,-159.826059,0.00032876,2]
[314129891,1708013441390,-567.11,0.00032876,7]
[314129892,1708013441400,-567.11,0.00032876,7]
[314129893,1708013441409,-567.11,0.00032876,7]
[314129894,1708013441417,-567.11,0.00032876,7]
[314129895,1708013441426,-567.11,0.00032876,7]
[314129896,1708013441436,-567.11,0.00032876,7]
[314129897,1708013441446,-567.11,0.00032876,7]
[314129898,1708013441454,-567.11,0.00032876,7]
[314129899,1708013441464,-567.11,0.00032876,7]
[314129900,1708013441473,-567.11,0.00032876,7]
[314129901,1708013441482,-567.11,0.00032876,7]
[314129902,1708013441491,-567.15203317,0.00032876,7]
[314129903,1708013441500,-592.35,0.00032876,7]
[314129904,1708013441509,-592.35,0.00032876,7]
[314129905,1708013441519,-592.35,0.00032876,7]
[314129906,1708013441529,-592.35,0.00032876,7]
[314129907,1708013441539,-592.35,0.00032876,7]
[314129908,1708013441549,-592.35,0.00032876,7]
[314129909,1708013441558,-592.35,0.00032876,7]
[314129910,1708013441567,-592.35,0.00032876,7]
[314129911,1708013441576,-592.35,0.00032876,7]
[314129912,1708013441585,-592.35,0.00032876,7]
[314129913,1708013441594,-592.35,0.00032876,7]
[314129914,1708013441604,-592.35,0.00032876,7]
[314129915,1708013441613,-592.35,0.00032876,7]
[314129916,1708013441625,-592.35,0.00032876,7]
[314129917,1708013441634,-592.35,0.00032876,7]
[314129918,1708013441643,-592.35,0.00032876,7]
[314129919,1708013441656,-592.35,0.00032876,7]
[314129920,1708013441666,-592.35,0.00032876,7]
[314129921,1708013441675,-592.35,0.00032876,7]
[314129922,1708013441685,-592.35,0.00032876,7]
[314129923,1708013441695,-198.13534654,0.00032876,7]
[314129924,1708013441704,-592.35,0.00032876,7]
[314129925,1708013441714,-592.35,0.00032876,7]
[314129926,1708013441724,-592.35,0.00032876,7]
[314129927,1708013441734,-592.4421983,0.00032876,7]
[314129928,1708013441744,-397.46061973,0.00032876,7]
[314129929,1708013441754,-500.0,0.00032876,7]
[314129930,1708013441765,-500.0,0.00032876,7]
[314129931,1708013441774,-500.0,0.00032876,7]
[314129932,1708013441784,-500.0,0.00032876,7]
[314129933,1708013441794,-500.0,0.00032876,7]
[314129934,1708013441804,-500.0,0.00032876,7]
[314129935,1708013441814,-500.0,0.00032876,7]
[314129936,1708013441823,-500.0,0.00032876,7]
[314129937,1708013441833,-500.0,0.00032876,7]
[314129938,1708013441843,-500.0,0.00032876,7]
[314129939,1708013441853,-500.0,0.00032876,7]
[314129940,1708013441863,-500.0,0.00032876,7]
[314129941,1708013441873,-500.0,0.00032876,7]
[314129942,1708013441883,-500.0,0.00032876,7]
[314129943,1708013441892,-450.90667153,0.00032876,7]
[314129944,1708013441905,-519.17079685,0.00032876,7]
[314129945,1708013441914,-500.0,0.00032876,7]
[314129946,1708013441924,-500.0,0.00032876,7]
[314129947,1708013441933,-500.0,0.00032876,7]
[314129948,1708013441943,-500.0,0.00032876,7]
[314129949,1708013441952,-500.0,0.00032876,7]
[314129950,1708013441962,-502.57460696,0.00032876,7]
[314129951,1708013441972,-632.37272132,0.00032876,7]
[314129952,1708013441981,-535.87278273,0.00032876,7]
[314129953,1708013441990,-500.0,0.00032876,7]
[314129954,1708013441999,-180.42367986,0.00032876,7]
[314129955,1708013442009,-158.51638676,0.00032876,7]
[314129956,1708013442018,-502.92808677,0.00032876,7]
[314129957,1708013442027,-502.66022835,0.00032876,7]
[314129958,1708013442036,-500.0,0.00032876,7]
[314129959,1708013442046,-500.0,0.00032876,7]
[314129960,1708013442055,-340.40376875,0.00032876,7]
[314129961,1708013442064,-503.59983805,0.00032876,7]
[314129962,1708013442074,-500.0,0.00032876,7]
[314129963,1708013442083,-582.01731099,0.00032876,7]
[314129964,1708013442092,-511.04327284,0.00032876,7]
[314129965,1708013442101,-604.93952717,0.00032876,7]
[314129966,1708013442110,-503.69014299,0.00032876,7]
[314129967,1708013442119,-500.0,0.00032876,7]
[314129968,1708013442128,-500.0,0.00032876,7]
[314129969,1708013442137,-500.0,0.00032876,7]
[314129970,1708013442146,-500.0,0.00032876,7]
[314129971,1708013442160,-500.0,0.00032876,7]
[314129972,1708013442169,-500.0,0.00032876,7]
[314129973,1708013442178,-500.0,0.00032876,7]
[314129974,1708013442187,-500.0,0.00032876,7]
[314129975,1708013442196,-500.0,0.00032876,7]
[314129976,1708013442205,-500.0,0.00032876,7]
[314129977,1708013442214,-500.0,0.00032876,7]
[314129978,1708013442223,-168.47470284,0.00032876,7]
[314129979,1708013442232,-500.0,0.00032876,7]
[314129980,1708013442242,-500.0,0.00032876,7]
[314129981,1708013442251,-500.0,0.00032876,7]
[314129982,1708013442261,-204.55841644,0.00032876,7]
[314129983,1708013442270,-500.0,0.00032876,7]
[314129984,1708013442280,-500.0,0.00032876,7]
[314129986,1708013442289,-161.36936577,0.00032876,7]
[314129988,1708013442298,-500.0,0.00032876,7]
[314129989,1708013442308,-500.0,0.00032876,7]
[314129991,1708013442317,-500.0,0.00032876,7]
[314129992,1708013442326,-500.0,0.00032876,7]
[314129993,1708013442336,-500.0,0.00032876,7]
[314129994,1708013442346,-794.72,0.00032876,2]
[314129995,1708013442356,-794.72,0.00032876,2]
[314129996,1708013442366,-794.72,0.00032876,2]
[314129997,1708013442376,-794.72,0.00032876,2]
[314129998,1708013442385,-794.72,0.00032876,2]
[314130000,1708013442394,-794.72,0.00032876,2]
[314130002,1708013442406,-794.72,0.00032876,2]
[314130003,1708013442415,-794.72,0.00032876,2]
[314130005,1708013442424,-794.72,0.00032876,2]
[314130006,1708013442434,-794.72,0.00032876,2]
[314130007,1708013442443,-794.72,0.00032876,2]
[314130008,1708013442453,-794.72,0.00032876,2]
[314130009,1708013442464,-794.72,0.00032876,2]
[314130010,1708013442474,-794.72,0.00032876,2]
[314130011,1708013442483,-794.72,0.00032876,2]
[314130013,1708013442493,-794.72,0.00032876,2]
[314130015,1708013442502,-794.72,0.00032876,2]
[314130017,1708013442511,-794.72,0.00032876,2]
[314130018,1708013442558,-794.72,0.00032876,2]
[314130021,1708013442568,-794.72,0.00032876,2]
[314130025,1708013442578,-794.72,0.00032876,2]
[314130027,1708013442588,-794.72,0.00032876,2]
[314130029,1708013442597,-794.72,0.00032876,2]